bitfinex/quotes_BTCUSD_20250211
["timestamp","ask_amount","ask_price","bid_price","bid_amount"]
[1739284658695,0.02077391,97156.0,97144.0,0.015]
[1739284658900,0.15,97149.0,97136.0,0.154422]
[1739284659132,0.15,97149.0,97146.0,0.007]
[1739284659338,0.304405,97147.0,97146.0,0.007]
[1739284659652,0.15,97147.0,97131.0,0.08256914]
[1739284659861,0.15,97147.0,97132.0,0.205905]
[1739284660064,0.154408,97145.0,97134.0,0.154424]
[1739284660423,0.1545145,97145.0,97136.0,0.004]
[1739284660587,0.0001065,97145.0,97131.0,0.08256914]
[1739284660790,0.0001065,97145.0,97131.0,0.002]
[1739284660997,0.154419,97138.0,97131.0,0.002]
[1739284661201,0.154419,97138.0,97127.0,0.154435]
[1739284661452,0.0001065,97145.0,97135.0,0.08256914]
[1739284661628,0.0759065,97145.0,97135.0,0.205897]
[1739284661831,0.0759065,97145.0,97128.0,0.10250365]
[1739284662032,0.154415,97141.0,97132.0,0.006]
[1739284662237,0.154413,97143.0,97132.0,0.006]
[1739284662442,0.154414,97142.0,97131.0,0.156429]
[1739284662759,0.0759065,97145.0,97131.0,0.156429]
[1739284662760,0.0759065,97145.0,97135.0,0.008]
[1739284662961,0.0759065,97145.0,97135.0,0.162423]
[1739284663293,0.0001065,97145.0,97140.0,0.154415]
[1739284663502,0.0001065,97145.0,97134.0,0.2059]
[1739284663705,0.0001065,97145.0,97137.0,0.15442]
[1739284664122,0.00208373,97144.0,97135.0,0.002]
[1739284664343,0.154416,97140.0,97135.0,0.002]
[1739284664547,0.154416,97140.0,97131.0,0.01]
[1739284664723,0.00208297,97139.0,97134.0,0.002]
[1739284664927,0.0001065,97145.0,97137.0,0.15442]
[1739284665138,0.00206978,97138.0,97126.0,0.205917]
[1739284665376,0.0001065,97145.0,97135.0,0.009]
[1739284665587,0.00206978,97137.0,97135.0,0.009]
[1739284665791,0.154416,97140.0,97135.0,0.009]
[1739284665994,0.00206959,97136.0,97135.0,0.002]
[1739284666220,0.0001065,97145.0,97137.0,0.007]
[1739284666431,0.01236646,97145.0,97137.0,0.007]
[1739284666664,0.154423,97136.0,97122.0,0.205924]
[1739284666873,0.154423,97136.0,97134.0,0.004]
[1739284667087,0.0001065,97145.0,97135.0,0.011]
[1739284667293,0.304422,97136.0,97135.0,0.011]
[1739284668246,0.15,97135.0,97121.0,0.00013311]
[1739284668451,0.154435,97129.0,97121.0,0.00013311]
[1739284668653,0.02049361,97136.0,97121.0,0.00013311]
[1739284669055,0.154434,97129.0,97121.0,0.00013311]
[1739284669286,0.205901,97134.0,97121.0,0.00013311]
[1739284669456,0.304444,97122.0,97121.0,0.00013311]
[1739284669674,0.304444,97122.0,97121.0,0.01313311]
[1739284670427,0.304444,97122.0,97121.0,0.00013311]
[1739284670555,0.42994765,97122.0,97121.0,0.00013311]
[1739284670761,5.55874765,97122.0,97121.0,0.00013311]
[1739284670964,5.58826652,97122.0,97121.0,0.00013311]
[1739284671284,5.27046652,97122.0,97121.0,0.00013311]
[1739284671698,0.53826652,97122.0,97121.0,0.00213311]
[1739284672065,5.63426652,97122.0,97121.0,0.00013311]
[1739284672461,0.1767,97121.0,97102.0,0.08256914]
[1739284672668,0.40626,97112.0,97102.0,0.08256914]
[1739284672944,0.53828252,97112.0,97102.0,0.08256914]
[1739284673089,5.58828252,97112.0,97102.0,0.08256914]
[1739284673290,1.71638252,97112.0,97102.0,0.08256914]
[1739284673484,1.65658252,97112.0,97102.0,0.08256914]
[1739284673694,1.04318252,97112.0,97086.0,0.00022365]
[1739284673895,1.04318252,97112.0,97087.0,0.1545]
[1739284674120,1.06438357,97112.0,97096.0,0.154485]
[1739284674319,1.06438357,97112.0,97086.0,0.20622565]
[1739284674320,0.5299647,97112.0,97086.0,0.20622565]
[1739284674499,0.5299647,97112.0,97091.0,0.154492]
[1739284674696,0.173,97111.0,97090.0,0.205994]
[1739284675018,0.15,97106.0,97091.0,0.154492]
[1739284675483,0.15,97106.0,97091.0,0.10250365]
[1739284675906,0.002,97112.0,97101.0,0.154477]
[1739284676107,0.002,97112.0,97098.0,0.205976]
[1739284676279,0.15,97114.0,97094.0,0.205983]
[1739284676517,0.001,97112.0,97100.0,0.154479]
[1739284676788,0.15,97114.0,97100.0,0.154479]
[1739284677488,0.15,97117.0,97093.0,0.205988]
[1739284677691,0.09210352,97114.0,97093.0,0.30849165]
[1739284677805,0.09210352,97114.0,97105.0,0.154471]
[1739284678024,0.09210352,97114.0,97107.0,0.205957]
[1739284678240,0.09310352,97114.0,97104.0,0.154472]
[1739284678433,0.09310352,97114.0,97105.0,0.154471]
[1739284678639,0.09310352,97114.0,97103.0,0.154473]
[1739284679070,0.09310352,97114.0,97105.0,0.154471]
[1739284679274,0.09510352,97114.0,97105.0,0.154471]
[1739284679478,0.09510352,97114.0,97101.0,0.154477]
[1739284679654,0.09310352,97114.0,97101.0,0.154476]
[1739284679862,0.154478,97102.0,97086.0,0.15472465]
[1739284680061,0.0787,97111.0,97092.0,0.08256914]
[1739284680268,0.0787,97111.0,97093.0,0.001]
[1739284680466,0.15,97109.0,97093.0,0.001]
[1739284680672,0.15,97109.0,97086.0,0.00022365]
[1739284680673,0.023,97102.0,97086.0,0.00022365]
[1739284680875,0.15,97103.0,97086.0,0.00022365]
[1739284680876,0.154494,97091.0,97086.0,0.00022365]
[1739284681123,0.154489,97095.0,97086.0,0.00022365]
[1739284681417,0.154494,97091.0,97086.0,0.00022365]
[1739284681662,0.15,97096.0,97086.0,0.00022365]
[1739284681868,0.01916545,97094.0,97086.0,0.00022365]
[1739284682041,0.01916545,97094.0,97090.0,0.00744431]
[1739284682272,0.01916545,97094.0,97093.0,0.154491]
[1739284682593,0.01916545,97094.0,97093.0,0.25699465]
[1739284683068,0.22688122,97116.0,97099.0,0.15448]
[1739284683069,0.01203091,97114.0,97099.0,0.15448]
[1739284683286,0.02094122,97116.0,97093.0,0.10250365]
[1739284683496,0.3226,97134.0,97100.0,0.21386585]
[1739284683673,0.0787,97143.0,97117.0,0.154451]
[1739284683856,0.10250365,97142.0,97102.0,0.205968]
[1739284684018,0.15,97128.0,97104.0,0.205964]
[1739284684223,0.154432,97130.0,97116.0,0.154453]
[1739284684474,0.15,97129.0,97116.0,0.154453]
[1739284684642,0.15,97129.0,97106.0,0.20596]
[1739284684847,0.15,97129.0,97107.0,0.10250365]
[1739284685196,0.15443,97131.0,97107.0,0.10250365]
[1739284685364,0.02026483,97134.0,97107.0,0.10250365]
[1739284685571,0.01918296,97128.0,97102.0,0.08256914]
[1739284685771,0.01918296,97128.0,97103.0,0.10250365]
[1739284685974,0.01918296,97128.0,97102.0,0.08256914]
[1739284686156,0.01918296,97128.0,97103.0,0.205966]
[1739284686351,0.01918296,97128.0,97102.0,0.18507279]
[1739284686573,0.01918296,97128.0,97103.0,0.12690069]
[1739284686944,0.01918296,97128.0,97127.0,0.154436]
[1739284687143,0.01918296,97128.0,97117.0,0.0816]
[1739284687344,0.01918296,97127.0,97124.0,0.15444]
[1739284687478,0.01918296,97127.0,97125.0,0.154439]
[1739284687882,0.01918296,97127.0,97117.0,0.0816]
[1739284687883,0.01918296,97127.0,97126.0,0.25694165]
[1739284688207,0.01918296,97127.0,97126.0,0.30554165]
[1739284688609,0.09213564,97137.0,97136.0,0.154422]
[1739284688989,0.09213564,97137.0,97136.0,0.25692565]
[1739284690094,0.00098954,97154.0,97137.0,0.154421]
[1739284690095,0.09213564,97138.0,97137.0,0.154421]
[1739284690336,0.09213564,97138.0,97137.0,0.25692465]
[1739284691663,0.09213564,97138.0,97137.0,0.25992465]
[1739284691889,0.09213564,97138.0,97137.0,0.26792465]
[1739284692506,0.00023953,97145.0,97144.0,0.154409]
[1739284693058,0.00023953,97145.0,97144.0,0.25794198]
[1739284693265,0.00023953,97145.0,97144.0,0.25691265]
[1739284694027,0.00023953,97145.0,97144.0,0.26091265]
[1739284694228,0.00023953,97145.0,97144.0,0.25691265]
[1739284694435,0.00023953,97145.0,97144.0,0.26191265]
[1739284694968,0.00023953,97145.0,97144.0,0.32271265]
[1739284696149,0.00023953,97145.0,97144.0,0.30871265]
[1739284696723,0.00023953,97145.0,97144.0,0.30371265]
[1739284696939,0.00023953,97145.0,97144.0,0.31071265]
[1739284697546,0.00023953,97145.0,97144.0,0.32571265]
[1739284698102,0.00023953,97145.0,97144.0,0.31071265]
[1739284698283,0.00023953,97145.0,97144.0,0.022]
[1739284698498,0.00023953,97145.0,97144.0,0.176409]
[1739284699799,5.3e-07,97145.0,97144.0,0.40571265]
[1739284700004,5.3e-07,97145.0,97144.0,0.57871265]
[1739284700412,5.3e-07,97145.0,97144.0,0.55571265]
[1739284700615,5.3e-07,97145.0,97144.0,0.54071265]
[1739284700743,5.3e-07,97145.0,97144.0,0.53371265]
[1739284700947,5.3e-07,97145.0,97144.0,0.55571265]
[1739284701375,5.3e-07,97145.0,97144.0,0.54871265]
[1739284701777,5.3e-07,97145.0,97144.0,0.54071265]
[1739284701980,5.3e-07,97145.0,97144.0,0.6432163]
[1739284702142,5.3e-07,97145.0,97144.0,0.55571265]
[1739284702981,5.3e-07,97145.0,97144.0,0.54871265]
[1739284703413,5.3e-07,97145.0,97144.0,0.54071265]
[1739284703613,5.3e-07,97145.0,97144.0,0.53371265]
[1739284703814,5.3e-07,97145.0,97144.0,0.55571265]
[1739284704193,5.3e-07,97145.0,97144.0,0.54071265]
[1739284704593,5.3e-07,97145.0,97144.0,0.54871265]
[1739284705024,5.3e-07,97145.0,97144.0,0.53371265]
[1739284705457,5.3e-07,97145.0,97144.0,0.27191265]
[1739284705628,5.3e-07,97145.0,97144.0,0.169409]
[1739284706010,5.3e-07,97145.0,97144.0,0.176409]
[1739284706217,5.3e-07,97145.0,97144.0,0.169409]
[1739284706622,5.3e-07,97145.0,97144.0,0.161409]
[1739284707058,5.3e-07,97145.0,97144.0,0.022]
[1739284707259,0.38050853,97145.0,97144.0,0.022]
[1739284707486,0.22610053,97145.0,97144.0,0.007]
[1739284707692,0.15440853,97145.0,97144.0,0.007]
[1739284708012,0.42991218,97145.0,97144.0,0.015]
[1739284708211,0.173,97144.0,97100.0,0.08256914]
[1739284708444,0.02042074,97145.0,97121.0,0.08256914]
[1739284708586,0.02042074,97145.0,97127.0,0.154435]
[1739284708796,0.154424,97135.0,97127.0,0.154435]
[1739284709122,0.154424,97135.0,97116.0,0.205938]
[1739284709381,0.154427,97134.0,97127.0,0.154435]
[1739284709983,5.3e-07,97145.0,97117.0,0.10250365]
[1739284710184,0.02300053,97145.0,97118.0,0.03084417]
[1739284710396,0.205888,97141.0,97119.0,0.10250365]
[1739284710608,0.154422,97136.0,97129.0,0.154433]
[1739284710857,0.205895,97137.0,97126.0,0.205917]
[1739284711068,0.15,97140.0,97127.0,0.009]
[1739284711272,0.15,97143.0,97127.0,0.009]
[1739284711477,0.154427,97134.0,97127.0,0.002]
[1739284711685,0.154427,97134.0,97127.0,0.156436]
[1739284712514,0.154436,97128.0,97120.0,0.154446]
[1739284712720,0.154436,97128.0,97119.0,0.10450365]
[1739284712721,0.173,97141.0,97119.0,0.002]
[1739284712903,0.173,97139.0,97105.0,0.205962]
[1739284713135,0.154443,97124.0,97117.0,0.154452]
[1739284713520,0.154435,97128.0,97127.0,0.002]
[1739284713753,0.205911,97130.0,97116.0,0.154453]
[1739284713961,0.15,97137.0,97119.0,0.002]
[1739284714167,0.154448,97120.0,97119.0,0.002]
[1739284714386,0.177448,97120.0,97119.0,0.002]
[1739284714599,0.177448,97120.0,97105.0,0.001]
[1739284714600,0.15447,97106.0,97105.0,0.001]
[1739284715296,0.205957,97108.0,97091.0,0.00022365]
[1739284715429,0.154476,97102.0,97095.0,0.154487]
[1739284715656,0.154475,97103.0,97095.0,0.154487]
[1739284716035,0.205963,97105.0,97097.0,0.154484]
[1739284716242,0.154472,97105.0,97097.0,0.154484]
[1739284716446,0.205957,97108.0,97095.0,0.00044431]
[1739284716949,0.15,97118.0,97095.0,0.00044431]
[1739284717165,0.2182433,97120.0,97107.0,0.154468]
[1739284717352,0.15,97116.0,97107.0,0.154468]
[1739284717552,0.15,97116.0,97106.0,0.15447]
[1739284717717,0.15,97116.0,97101.0,0.20597]
[1739284717919,0.15,97111.0,97096.0,0.10250365]
[1739284718118,0.15,97111.0,97106.0,0.154468]
[1739284718318,0.15,97111.0,97096.0,0.10250365]
[1739284718520,0.15,97111.0,97105.0,0.154471]
[1739284718733,0.15,97111.0,97104.0,0.154473]
[1739284718931,0.15,97113.0,97104.0,0.154473]
[1739284719112,0.15,97113.0,97102.0,0.205967]
[1739284719315,0.15,97113.0,97100.0,0.205973]
[1739284719493,0.304459,97113.0,97096.0,0.10250365]
[1739284719707,0.15,97113.0,97095.0,0.00044431]
[1739284719912,0.154468,97107.0,97095.0,0.00044431]
[1739284720113,0.154468,97107.0,97098.0,0.154481]
[1739284720347,0.15,97114.0,97102.0,0.001]
[1739284720548,0.15,97114.0,97105.0,0.154471]
[1739284720812,0.15,97114.0,97102.0,0.154476]
[1739284720996,0.154463,97111.0,97102.0,0.154476]
[1739284721215,0.154463,97111.0,97103.0,0.154474]
[1739284721411,0.154464,97110.0,97102.0,0.154476]
[1739284722655,0.154464,97110.0,97102.0,0.155476]
[1739284723299,0.154464,97110.0,97102.0,0.15469986]
[1739284723500,0.154464,97110.0,97102.0,0.15869986]
[1739284723701,0.15,97115.0,97102.0,0.15969986]
[1739284723954,0.15,97115.0,97102.0,0.15569986]
[1739284724210,0.023,97116.0,97102.0,0.00122386]
[1739284724458,0.154475,97103.0,97102.0,0.00522386]
[1739284725426,0.20596,97106.0,97102.0,0.00522386]
[1739284725627,0.154475,97103.0,97102.0,0.00022386]
[1739284726305,0.154475,97103.0,97102.0,0.00222386]
[1739284726519,0.154475,97103.0,97102.0,0.00622386]
[1739284726888,0.327475,97103.0,97102.0,0.00222386]
[1739284727334,0.327475,97103.0,97102.0,0.00922386]
[1739284727680,0.34856113,97103.0,97102.0,0.00922386]
[1739284728093,0.18310047,97103.0,97102.0,0.00922386]
[1739284728293,0.36057547,97103.0,97102.0,0.00922386]
[1739284728814,0.18310047,97103.0,97102.0,0.00722386]
[1739284729018,0.17108613,97103.0,97102.0,0.00022386]
[1739284729394,0.15,97103.0,97102.0,0.00222386]
[1739284730949,0.327475,97103.0,97102.0,0.00222386]
[1739284734069,0.15,97103.0,97102.0,0.00222386]
[1739284736098,0.327475,97103.0,97102.0,0.00222386]
[1739284738891,0.15,97103.0,97102.0,0.00222386]
[1739284740516,0.327475,97103.0,97102.0,0.00222386]
[1739284741366,5.56007865,97103.0,97102.0,0.00222386]
[1739284741520,5.6492237,97103.0,97102.0,0.00222386]
[1739284742334,5.6492237,97103.0,97102.0,0.00022386]
[1739284742553,0.01,97099.0,97095.0,0.00044431]
[1739284742750,0.327486,97096.0,97095.0,0.00044431]
[1739284742958,5.5095347,97096.0,97095.0,0.00044431]
[1739284743161,1.4381347,97096.0,97095.0,0.00044431]
[1739284743484,0.84338965,97096.0,97095.0,0.00044431]
[1739284744589,0.85513342,97096.0,97095.0,0.00044431]
[1739284744796,0.173,97095.0,97064.0,0.154537]
[1739284744989,0.173,97095.0,97063.0,0.00909161]
[1739284744990,0.154512,97080.0,97065.0,0.154535]
[1739284745189,0.173,97086.0,97063.0,0.00922411]
[1739284745390,0.206027,97075.0,97063.0,0.00922411]
[1739284745655,0.023,97084.0,97063.0,0.00922411]
[1739284745858,0.154532,97067.0,97063.0,0.00922411]
[1739284746138,0.15453,97069.0,97063.0,0.00922411]
[1739284746291,0.154536,97065.0,97063.0,0.00922411]
[1739284746493,0.206038,97070.0,97063.0,0.00922411]
[1739284746695,0.154532,97067.0,97063.0,0.01522411]
[1739284746900,0.001,97075.0,97063.0,0.0061325]
[1739284746901,0.154537,97064.0,97063.0,0.0061325]
[1739284748304,0.154537,97064.0,97063.0,0.0011325]
[1739284748547,0.02061395,97076.0,97063.0,0.0011325]
[1739284748791,0.154537,97064.0,97063.0,0.0121325]
[1739284748988,0.154537,97064.0,97063.0,0.0161325]
[1739284749189,0.206026,97075.0,97063.0,0.0041325]
[1739284749409,0.155537,97064.0,97063.0,0.0161325]
[1739284749614,0.001,97064.0,97063.0,0.0161325]
[1739284749815,0.001,97064.0,97059.0,0.12667549]
[1739284750026,0.001,97064.0,97059.0,0.00013316]
[1739284750229,0.001,97064.0,97060.0,0.154543]
[1739284750638,0.001,97064.0,97061.0,0.154541]
[1739284750842,0.304532,97067.0,97060.0,0.0783]
[1739284751289,0.15,97067.0,97063.0,0.004]
[1739284751488,0.154537,97064.0,97063.0,0.004]
[1739284751844,0.16626176,97067.0,97061.0,0.004]
[1739284752103,0.21877276,97067.0,97060.0,0.01]
[1739284752308,0.001,97067.0,97060.0,0.014]
[1739284752525,0.154541,97061.0,97060.0,0.004]
[1739284752729,0.154543,97060.0,97059.0,0.00013316]
[1739284754587,0.155543,97060.0,97059.0,0.00313316]
[1739284755282,0.155543,97060.0,97059.0,0.01313316]
[1739284755283,0.305543,97060.0,97059.0,0.01313316]
[1739284755574,0.306543,97060.0,97059.0,0.01313316]
[1739284756331,0.152,97060.0,97059.0,0.01313316]
[1739284756534,0.306543,97060.0,97059.0,0.01313316]
[1739284756987,0.305543,97060.0,97059.0,0.01013316]
[1739284757210,0.305543,97060.0,97059.0,0.00013316]
[1739284757524,0.304543,97060.0,97059.0,0.00913316]
[1739284757684,0.305543,97060.0,97059.0,0.00913316]
[1739284758221,0.01204054,97068.0,97061.0,0.154541]
[1739284758350,0.001,97060.0,97059.0,0.00913316]
[1739284758710,0.001,97060.0,97059.0,0.16367816]
[1739284759270,0.001,97060.0,97059.0,0.45198499]
[1739284759520,0.001,97060.0,97059.0,0.39438181]
[1739284760104,0.001,97060.0,97059.0,0.39358061]
[1739284760464,0.09200928,97069.0,97068.0,0.15453]
[1739284761073,0.09200928,97078.0,97074.0,0.154521]
[1739284761192,0.09200928,97078.0,97059.0,0.23225968]
[1739284761394,0.09200928,97078.0,97076.0,0.154516]
[1739284761644,0.09200928,97078.0,97077.0,0.154516]
[1739284761817,0.09200928,97078.0,97077.0,0.33701965]
[1739284762026,0.09200928,97078.0,97077.0,0.38421965]
[1739284762227,0.09300928,97078.0,97077.0,0.38421965]
[1739284762816,0.09300928,97078.0,97074.0,0.213028]
[1739284762817,0.09300928,97078.0,97074.0,0.007]
[1739284763075,0.09300928,97078.0,97077.0,0.154516]
[1739284763297,0.09300928,97078.0,97077.0,0.25701965]
[1739284763489,0.09200928,97078.0,97077.0,0.25701965]
[1739284763695,0.09200928,97078.0,97077.0,0.156516]
[1739284764109,0.09200928,97078.0,97077.0,0.154516]
[1739284764522,0.09200928,97078.0,97077.0,0.163516]
[1739284764720,0.09200928,97078.0,97077.0,0.27101965]
[1739284765150,0.09200928,97096.0,97092.0,0.154491]
[1739284765355,0.09200928,97096.0,97086.0,0.206]
[1739284765568,0.09200928,97096.0,97088.0,0.205998]
[1739284765771,0.09200928,97096.0,97095.0,0.154487]
[1739284765983,0.09200928,97096.0,97095.0,0.282687]
[1739284766186,0.09200928,97096.0,97095.0,0.38519065]
[1739284766394,0.09200928,97096.0,97095.0,0.46504037]
[1739284766771,0.09600928,97096.0,97095.0,0.38532381]
[1739284767001,0.09500928,97096.0,97095.0,0.38532381]
[1739284767381,0.09300928,97096.0,97095.0,0.39232381]
[1739284767530,0.002,97096.0,97095.0,0.40732381]
[1739284767950,0.001,97096.0,97095.0,0.40032381]
[1739284768231,0.001,97096.0,97095.0,0.40732381]
[1739284768370,0.002,97096.0,97095.0,0.40732381]
[1739284771123,0.002,97096.0,97095.0,0.83622746]
[1739284771360,0.002,97096.0,97095.0,0.73372381]
[1739284772420,0.002,97096.0,97095.0,0.74569602]
[1739284773608,0.002,97096.0,97095.0,0.73372381]
[1739284773781,0.0021067,97096.0,97095.0,0.73372381]
[1739284774913,0.0021067,97096.0,97095.0,0.60552381]
[1739284775095,0.0021067,97096.0,97095.0,0.50302016]
[1739284776620,0.0021067,97096.0,97095.0,0.02213316]
[1739284777602,0.0011067,97096.0,97095.0,0.01513316]
[1739284778187,0.0001067,97096.0,97095.0,0.00013316]
[1739284778416,0.0001067,97096.0,97095.0,0.00613316]
[1739284778626,0.154476,97102.0,97095.0,0.00613316]
[1739284778821,0.15,97102.0,97095.0,0.00613316]
[1739284779074,0.154486,97096.0,97095.0,0.00613316]
[1739284779767,0.155486,97096.0,97095.0,0.01513316]
[1739284779911,0.157486,97096.0,97095.0,0.01513316]
[1739284780114,0.156486,97096.0,97095.0,0.00013316]
[1739284780512,0.157486,97096.0,97095.0,0.00013316]
[1739284780939,0.159486,97096.0,97095.0,0.00013316]
[1739284781139,0.160486,97096.0,97095.0,0.00013316]
[1739284781317,0.155486,97096.0,97095.0,0.00013316]
[1739284781709,0.154486,97096.0,97095.0,0.00013316]
[1739284782406,0.154483,97098.0,97095.0,0.00013316]
[1739284782613,0.177486,97096.0,97095.0,0.00013316]
[1739284782939,0.333486,97096.0,97095.0,0.00013316]
[1739284783215,0.332486,97096.0,97095.0,0.00013316]
[1739284783637,0.328486,97096.0,97095.0,0.00013316]
[1739284783828,0.327486,97096.0,97095.0,0.00013316]
[1739284784253,0.328486,97096.0,97095.0,0.00013316]
[1739284784389,0.42998965,97096.0,97095.0,0.00013316]
[1739284784805,0.47898965,97096.0,97095.0,0.00013316]
[1739284786306,0.48298965,97096.0,97095.0,0.00013316]
[1739284786513,0.48198965,97096.0,97095.0,0.00013316]
[1739284786737,0.47798965,97096.0,97095.0,0.00013316]
[1739284786900,0.48609635,97096.0,97095.0,0.00013316]
[1739284787095,0.48409635,97096.0,97095.0,0.00013316]
[1739284787362,0.1561067,97096.0,97095.0,0.00013316]
[1739284787676,0.3125927,97096.0,97095.0,0.00013316]
[1739284788427,0.1581067,97096.0,97095.0,0.00013316]
[1739284788840,0.3125927,97096.0,97095.0,0.00013316]
[1739284789061,0.3105927,97096.0,97095.0,0.00013316]
[1739284789266,0.43609635,97096.0,97095.0,0.00013316]
[1739284789493,0.43209635,97096.0,97095.0,0.00013316]
[1739284789959,0.43509635,97096.0,97095.0,0.00013316]
[1739284790326,0.43009635,97096.0,97095.0,0.00013316]
[1739284790765,0.43509635,97096.0,97095.0,0.00013316]
[1739284791203,0.3345927,97096.0,97095.0,0.00013316]
[1739284792156,0.1801067,97096.0,97095.0,0.00013316]
[1739284792371,0.0051067,97096.0,97095.0,0.00013316]
[1739284792691,0.0061067,97096.0,97095.0,0.00013316]
[1739284792893,0.0051067,97096.0,97095.0,0.00013316]
[1739284793120,0.0051067,97096.0,97095.0,0.15462016]
[1739284793121,0.0001067,97096.0,97095.0,0.15462016]
[1739284793298,0.0021067,97096.0,97095.0,0.15462016]
[1739284793860,0.0041067,97096.0,97095.0,0.15462016]
[1739284794068,0.0041067,97096.0,97095.0,0.00013316]
[1739284794274,0.0001067,97096.0,97095.0,0.00013316]
[1739284794483,0.0001067,97096.0,97095.0,0.00713316]
[1739284794693,0.0011067,97096.0,97095.0,0.00713316]
[1739284796374,0.0011067,97096.0,97095.0,0.01013316]
[1739284798994,0.0011067,97096.0,97095.0,0.01035702]
[1739284800059,0.01261152,97096.0,97095.0,0.01035702]
[1739284801012,0.03561152,97096.0,97095.0,0.01035702]
[1739284801227,0.19009752,97096.0,97095.0,0.01035702]
[1739284801424,0.44260117,97096.0,97095.0,0.01035702]
[1739284802041,0.47216966,97096.0,97095.0,0.01035702]
[1739284802838,0.47116966,97096.0,97095.0,0.00035702]
[1739284803046,0.47616966,97096.0,97095.0,0.00035702]
[1739284803257,0.47816966,97096.0,97095.0,0.00035702]
[1739284803972,5.52816966,97096.0,97095.0,0.00035702]
[1739284804800,0.15,97084.0,97073.0,0.154521]
[1739284805021,0.15,97084.0,97069.0,0.03388108]
[1739284805229,0.154511,97081.0,97070.0,0.154527]
[1739284805555,0.0714,97094.0,97063.0,0.20605]
[1739284805756,0.173,97092.0,97065.0,0.154534]
[1739284805956,0.154514,97079.0,97067.0,0.154532]
[1739284806159,0.206013,97081.0,97073.0,0.004]
[1739284806405,0.327521,97074.0,97073.0,0.004]
[1739284807081,0.15,97073.0,97058.0,0.20606]
[1739284807282,0.15,97073.0,97059.0,0.00155611]
[1739284807501,0.15,97073.0,97072.0,0.154524]
[1739284807685,0.023,97091.0,97074.0,0.154519]
[1739284807865,0.173,97086.0,97074.0,0.154519]
[1739284808210,0.02057141,97084.0,97073.0,0.154522]
[1739284808588,0.15,97086.0,97083.0,0.154506]
[1739284808801,0.01138255,97092.0,97074.0,0.0475]
[1739284809002,0.09200928,97095.0,97094.0,0.154489]
[1739284809403,0.09200928,97095.0,97094.0,0.147747]
[1739284809946,0.0001067,97096.0,97093.0,0.0773]
[1739284810139,0.0001067,97096.0,97095.0,0.154487]
[1739284810434,0.0001067,97096.0,97095.0,0.153487]
[1739284810670,0.0001067,97096.0,97095.0,0.154487]
[1739284810825,0.0001067,97096.0,97084.0,0.0773]
[1739284811031,0.0011067,97096.0,97095.0,0.154487]
[1739284811694,0.0011067,97096.0,97093.0,0.014]
[1739284811900,0.0011067,97096.0,97094.0,0.154488]
[1739284812038,0.0011067,97096.0,97093.0,0.014]
[1739284812237,0.0011067,97096.0,97095.0,0.154487]
[1739284812477,0.0001067,97096.0,97095.0,0.154487]
[1739284812929,0.0011067,97096.0,97095.0,0.162487]
[1739284813339,0.0001067,97096.0,97095.0,0.157487]
[1739284813540,0.0001067,97096.0,97095.0,0.164487]
[1739284813701,0.0011067,97096.0,97095.0,0.01]
[1739284813907,0.0011067,97096.0,97095.0,0.013]
[1739284814170,0.0001067,97096.0,97095.0,0.154487]
[1739284814489,0.0011067,97096.0,97095.0,0.165487]
[1739284814694,0.0011067,97096.0,97095.0,0.168487]
[1739284815114,0.0011067,97096.0,97095.0,0.014]
[1739284815319,0.0011067,97096.0,97095.0,0.168487]
[1739284816536,0.0011067,97096.0,97095.0,0.014]
[1739284817144,0.1555927,97096.0,97095.0,0.014]
[1739284817389,0.0011067,97096.0,97095.0,0.014]
[1739284817852,0.0011067,97096.0,97095.0,0.168487]
[1739284818059,0.0011067,97096.0,97095.0,0.014]
[1739284818627,0.16731711,97096.0,97095.0,0.014]
[1739284818975,0.01283111,97096.0,97095.0,0.014]
[1739284819333,0.16731711,97096.0,97095.0,0.014]
[1739284819523,0.01283111,97096.0,97095.0,0.014]
[1739284820916,0.023,97095.0,97074.0,0.00022386]
[1739284821115,0.15451,97081.0,97074.0,0.00022386]
[1739284821317,0.154512,97080.0,97074.0,0.00022386]
[1739284821587,0.154517,97077.0,97074.0,0.00022386]
[1739284821792,0.02092619,97083.0,97074.0,0.00022386]
[1739284821995,0.154514,97079.0,97074.0,0.00022386]
[1739284822193,0.355994,97090.0,97074.0,0.00022386]
[1739284822194,0.15,97089.0,97074.0,0.00022386]
[1739284822441,0.023,97083.0,97074.0,0.00022386]
[1739284822682,0.154517,97077.0,97074.0,0.00022386]
[1739284823251,0.154517,97077.0,97074.0,0.00122386]
[1739284823463,0.154519,97075.0,97074.0,0.00122386]
[1739284823884,0.154515,97078.0,97074.0,0.00022386]
[1739284824090,0.01131942,97076.0,97074.0,0.00022386]
[1739284824283,0.15,97088.0,97074.0,0.00322386]
[1739284824526,0.15,97082.0,97075.0,0.154519]
[1739284824738,0.09235286,97079.0,97075.0,0.154518]
[1739284825074,0.09235286,97079.0,97074.0,0.15774386]
[1739284825705,0.09235286,97079.0,97074.0,0.00322386]
[1739284825865,0.09235286,97079.0,97074.0,0.00122386]
[1739284826067,0.09235286,97079.0,97075.0,0.154519]
[1739284826285,0.09235286,97079.0,97074.0,0.00022386]
[1739284826691,0.154519,97075.0,97074.0,0.00022386]
[1739284826910,0.09235286,97079.0,97074.0,0.00022386]
[1739284827113,0.1046298,97079.0,97074.0,0.00022386]
[1739284827434,0.16678994,97079.0,97074.0,0.00022386]
[1739284827605,0.16578994,97079.0,97074.0,0.00022386]
[1739284827873,0.01127694,97079.0,97074.0,0.00122386]
[1739284828076,0.16127694,97079.0,97074.0,0.00122386]
[1739284828280,0.15,97079.0,97074.0,0.00122386]
[1739284829211,0.15,97083.0,97074.0,0.00022386]
[1739284829362,0.15,97079.0,97074.0,0.00022386]
[1739284829564,0.151,97079.0,97074.0,0.00022386]
[1739284830021,0.15,97079.0,97074.0,0.00022386]
[1739284830428,0.15451,97081.0,97074.0,0.00022386]
[1739284830570,0.15,97079.0,97074.0,0.00022386]
[1739284831117,0.151,97079.0,97074.0,0.00022386]
[1739284831676,0.001,97079.0,97074.0,0.00022386]
[1739284832490,0.151,97079.0,97074.0,0.00022386]
[1739284832934,0.29836286,97083.0,97074.0,0.00022386]